fUST/lending_fUST_20250709
["ID","MTS","AMOUNT","RATE_DAILY","PERIOD"]
[370602819,1752072638526,-460.0,0.00019178,2]
[370602821,1752072638535,-460.0,0.00019178,2]
[370602823,1752072638545,-460.0,0.00019178,2]
[370602825,1752072638554,-460.0,0.00019178,2]
[370602827,1752072638564,-460.0,0.00019178,2]
[370602830,1752072638573,-460.0,0.00019178,2]
[370602833,1752072638582,-460.0,0.00019178,2]
[370602835,1752072638591,-288.77145846,0.00019178,2]
[370602844,1752072638677,-172.45045036,0.00019178,2]
[370602847,1752072638686,-174.57568547,0.00019178,2]
[370602850,1752072638697,-460.0,0.00019178,2]
[370602853,1752072638707,-460.0,0.00019178,2]
[370602855,1752072638720,-460.0,0.00019178,2]
[370602857,1752072638729,-522.74544033,0.00019178,2]
[370602859,1752072638738,-420.42271052,0.00019178,2]
[370602861,1752072638751,-39.57728948,0.00019178,2]
[370602863,1752072638760,-266.84292789,0.00019178,2]
[370602875,1752072638865,-193.15707211,0.00019178,2]
[370602876,1752072638875,-311.16311094,0.00019178,2]
[370602879,1752072638886,-148.83688906,0.00019178,2]
[370602881,1752072638896,-460.0,0.00019178,2]
[370602883,1752072638905,-460.0,0.00019178,2]
[370602884,1752072638914,-460.0,0.00019178,2]
[370602886,1752072638923,-460.0,0.00019178,2]
[370602888,1752072638932,-460.0,0.00019178,2]
[370602889,1752072638943,-460.0,0.00019178,2]
[370602890,1752072638953,-460.0,0.00019178,2]
[370602892,1752072638962,-332.92512688,0.00019178,2]
[370602894,1752072638974,-127.07487312,0.00019178,2]
[370602896,1752072638983,-460.0,0.00019178,2]
[370602898,1752072638992,-418.19241599,0.00019178,2]
[370602901,1752072639008,-581.80758401,0.00019178,2]
[370602903,1752072639018,-460.0,0.00019178,2]
[370602905,1752072639027,-460.0,0.00019178,2]
[370602907,1752072639036,-460.0,0.00019178,2]
[370602909,1752072639046,-460.0,0.00019178,2]
[370602910,1752072639055,-460.0,0.00019178,2]
[370602911,1752072639063,-460.0,0.00019178,2]
[370602912,1752072639072,-460.0,0.00019178,2]
[370602913,1752072639081,-460.0,0.00019178,2]
[370602914,1752072639090,-460.0,0.00019178,2]
[370602915,1752072639099,-463.29777052,0.00019178,2]
[370602916,1752072639108,-461.39285426,0.00019178,2]
[370602917,1752072639117,-460.0,0.00019178,2]
[370602918,1752072639126,-460.0,0.00019178,2]
[370602919,1752072639136,-460.0,0.00019178,2]
[370602920,1752072639146,-460.0,0.00019178,2]
[370602921,1752072639155,-316.54947232,0.00019178,2]
[370602922,1752072639164,-460.0,0.00019178,2]
[370602923,1752072639173,-460.0,0.00019178,2]
[370602924,1752072639183,-460.0,0.00019178,2]
[370602925,1752072639193,-460.0,0.00019178,2]
[370602926,1752072639202,-104.83570227,0.00019178,2]
[370603088,1752072640866,-355.16429773,0.00019178,2]
[370603090,1752072640876,-460.0,0.00019178,2]
[370603092,1752072640886,-372.165557,0.00019178,2]
[370603094,1752072640897,-460.0,0.00019178,2]
[370603096,1752072640907,-460.0,0.00019178,2]
[370603098,1752072640916,-460.0,0.00019178,2]
[370603100,1752072640926,-460.0,0.00019178,2]
[370603102,1752072640935,-460.0,0.00019178,2]
[370603104,1752072640946,-242.44062772,0.00019178,2]
[370603106,1752072640956,-460.0,0.00019178,2]
[370603108,1752072640966,-460.0,0.00019178,2]
[370603110,1752072640975,-460.0,0.00019178,2]
[370603112,1752072640984,-460.0,0.00019178,2]
[370603114,1752072640993,-509.00779813,0.00019178,2]
[370603116,1752072641003,-460.0,0.00019178,2]
[370603118,1752072641012,-460.0,0.00019178,2]
[370603120,1752072641022,-460.0,0.00019178,2]
[370603122,1752072641031,-460.0,0.00019178,2]
[370603124,1752072641040,-460.0,0.00019178,2]
[370603126,1752072641049,-460.0,0.00019178,2]
[370603128,1752072641058,-460.0,0.00019178,2]
[370603130,1752072641067,-460.0,0.00019178,2]
[370603132,1752072641077,-460.0,0.00019178,2]
[370603134,1752072641086,-460.0,0.00019178,2]
[370603136,1752072641095,-460.0,0.00019178,2]
[370603138,1752072641104,-460.0,0.00019178,2]
[370603140,1752072641114,-460.0,0.00019178,2]
[370603142,1752072641124,-435.28628364,0.00019178,2]
[370603507,1752072644198,-24.71371636,0.00019178,2]
[370603509,1752072644207,-60.45001112,0.00019178,2]
[370603511,1752072644219,-399.54998888,0.00019178,2]
[370603513,1752072644228,-460.0,0.00019178,2]
[370603515,1752072644238,-460.0,0.00019178,2]
[370603517,1752072644247,-344.79575709,0.00019178,2]
[370603519,1752072644256,-212.51814193,0.00019178,2]
[370603522,1752072644277,-247.48185807,0.00019178,2]
[370603524,1752072644286,-460.0,0.00019178,2]
[370603526,1752072644295,-442.31814193,0.00019178,2]
[370603528,1752072644308,-17.68185807,0.00019178,2]
[370603530,1752072644318,-460.0,0.00019178,2]
[370603532,1752072644327,-202.90802203,0.00019178,2]
[370603538,1752072644373,-12.25202971,0.00019178,2]
[370603540,1752072644383,-460.0,0.00019178,2]
[370603542,1752072644393,-460.0,0.00019178,2]
[370603544,1752072644402,-199.24182667,0.00019178,2]
[370603546,1752072644412,-460.0,0.00019178,2]
[370603548,1752072644422,-296.94986828,0.00019178,2]
[370603550,1752072644431,-460.0,0.00019178,2]
[370603552,1752072644441,-151.52565934,0.00019178,2]
[370603786,1752072646752,-308.47434066,0.00019178,2]
[370603788,1752072646762,-460.0,0.00019178,2]
[370603790,1752072646772,-391.12773118,0.00019178,2]
[370603792,1752072646784,-460.0,0.00019178,2]
[370603794,1752072646793,-460.0,0.00019178,2]
[370603796,1752072646802,-460.0,0.00019178,2]
[370603799,1752072646812,-460.0,0.00019178,2]
[370603801,1752072646822,-460.0,0.00019178,2]
[370603803,1752072646832,-460.0,0.00019178,2]
[370603805,1752072646842,-460.0,0.00019178,2]
[370603807,1752072646852,-460.0,0.00019178,2]
[370603809,1752072646861,-461.94803968,0.00019178,2]
[370603811,1752072646871,-589.47773331,0.00019178,2]
[370603813,1752072646880,-460.0,0.00019178,2]
[370603815,1752072646890,-222.23609977,0.00019178,2]
[370603817,1752072646903,-237.76390023,0.00019178,2]
[370603819,1752072646912,-460.0,0.00019178,2]
[370603821,1752072646922,-460.0,0.00019178,2]
[370603823,1752072646931,-460.0,0.00019178,2]
[370603825,1752072646940,-460.0,0.00019178,2]
[370603827,1752072646950,-446.53609967,0.00019178,2]
[370603829,1752072646962,-13.46390033,0.00019178,2]
[370603831,1752072646972,-311.1917748,0.00019178,2]
[370603833,1752072646983,-148.8082252,0.00019178,2]
[370603836,1752072646992,-460.0,0.00019178,2]
[370603838,1752072647002,-460.0,0.00019178,2]
[370603840,1752072647011,-460.0,0.00019178,2]
[370603842,1752072647021,-460.0,0.00019178,2]
[370603843,1752072647030,-460.0,0.00019178,2]
[370603846,1752072647040,-460.0,0.00019178,2]
[370603847,1752072647049,-460.0,0.00019178,2]
[370603849,1752072647058,-460.0,0.00019178,2]
[370603852,1752072647068,-460.0,0.00019178,2]
[370603854,1752072647076,-460.0,0.00019178,2]
[370603856,1752072647086,-460.0,0.00019178,2]
[370603858,1752072647095,-460.0,0.00019178,2]
[370603860,1752072647106,-460.0,0.00019178,2]
[370603862,1752072647115,-460.0,0.00019178,2]
[370603864,1752072647125,-460.0,0.00019178,2]
[370603866,1752072647134,-460.0,0.00019178,2]
[370603868,1752072647143,-460.0,0.00019178,2]
[370603870,1752072647153,-460.0,0.00019178,2]
[370603872,1752072647163,-438.82444632,0.00019178,2]
[370603874,1752072647173,-460.0,0.00019178,2]
[370603876,1752072647183,-460.0,0.00019178,2]
[370603878,1752072647193,-460.0,0.00019178,2]
[370603880,1752072647204,-460.0,0.00019178,2]
[370603882,1752072647213,-460.0,0.00019178,2]
[370603884,1752072647223,-460.0,0.00019178,2]
[370603886,1752072647233,-460.0,0.00019178,2]
[370603888,1752072647242,-300.72791618,0.00019178,2]
[370603890,1752072647252,-460.0,0.00019178,2]
[370603892,1752072647262,-460.0,0.00019178,2]
[370603894,1752072647271,-460.0,0.00019178,2]
[370603896,1752072647281,-460.0,0.00019178,2]
[370603898,1752072647291,-460.0,0.00019178,2]
[370603900,1752072647301,-460.0,0.00019178,2]
[370603902,1752072647312,-460.0,0.00019178,2]
[370603904,1752072647322,-460.0,0.00019178,2]
[370603906,1752072647332,-460.0,0.00019178,2]
[370603908,1752072647341,-460.0,0.00019178,2]
[370603910,1752072647351,-460.0,0.00019178,2]
[370603912,1752072647360,-189.96883415,0.00019178,2]
[370603914,1752072647370,-460.0,0.00019178,2]
[370603916,1752072647379,-460.0,0.00019178,2]
[370603918,1752072647389,-395.65910485,0.00019178,2]
[370603921,1752072647399,-460.0,0.00019178,2]
[370603923,1752072647409,-460.0,0.00019178,2]
[370603924,1752072647418,-460.0,0.00019178,2]
[370603927,1752072647428,-173.98635491,0.00019178,2]
[370608859,1752072701661,579.03702376,0.000189,2]
[370609458,1752072749930,191.37642416,0.00025293,120]
[370609462,1752072789117,167.43457693,0.00018978,2]
[370609480,1752072827396,167.43457691,0.00018978,2]
[370609498,1752072900892,155.386369,0.00018816,7]
[370609502,1752072934774,167.43457691,0.00018977,2]
[370609503,1752072935190,167.43457691,0.00018978,2]
[370609505,1752072941803,2107.68,0.00024,60]
[370609509,1752073002896,386.0246825,0.000189,2]
[370609517,1752073112858,2702.9,0.00027397,120]
[370609523,1752073304241,257.34978834,0.000189,2]
[370609524,1752073314754,352.46411255,0.00018978,2]
[370609527,1752073411310,1000.0,0.00027,120]
[370609528,1752073425882,1000.0,0.00025,120]
[370609529,1752073442346,1000.0,0.00027,120]
[370609536,1752073457651,1000.0,0.00027,120]
[370609537,1752073458337,1000.0,0.00027,120]
[370609540,1752073459002,1000.0,0.00027,120]
[370609546,1752073534313,-298.030507,0.00019068,2]
[370609547,1752073534336,-135.88834945,0.00019074,2]
[370609549,1752073595406,308.40609849,0.00018978,2]
[370609554,1752073661194,189.072496,0.00013699,2]
[370609557,1752073699822,155.0,0.00025577,60]
[370609562,1752073750121,-255.454721,0.00019068,2]
[370609563,1752073750143,-300.0,0.00019073,2]
[370609564,1752073750166,-164.11165055,0.00019074,2]
[370609565,1752073750189,-1200.0,0.00019074,2]
[370609566,1752073750211,-1200.0,0.00019074,2]
[370609567,1752073750232,-300.0,0.00019075,2]
[370609568,1752073750253,-300.0,0.00019075,2]
[370609569,1752073750273,-300.0,0.00019075,2]
[370609570,1752073750295,-790.156,0.00019078,2]
[370609571,1752073750316,-159.95142458,0.00019078,2]
[370609572,1752073750337,-21795.85324972,0.00019078,2]
[370609573,1752073750360,-1216.97348418,0.00019078,2]
[370609591,1752073832021,-218.961189,0.00019068,2]
[370609592,1752073832031,-300.0,0.00019077,2]
[370609593,1752073832040,-159.95142454,0.00019078,2]
[370609594,1752073832050,-1001.5287341,0.00019078,2]
[370609595,1752073832062,-590.40961051,0.00019078,2]
[370609596,1752073832073,-10685.79494649,0.00019078,2]
[370609597,1752073832083,-913.19120389,0.00019078,2]
[370609598,1752073832093,-207.4,0.00019155,2]
[370609599,1752073832102,-300.0,0.00019166,2]
[370609600,1752073832111,-500.0,0.00019166,2]
[370609601,1752073832121,-500.0,0.00019166,2]
[370609602,1752073832130,-300.0,0.00019166,2]
[370609603,1752073832139,-500.0,0.00019166,2]
[370609604,1752073832148,-256.36384962,0.00019166,2]
[370609768,1752073840606,-43.63615038,0.00019166,2]
[370609770,1752073840615,-500.0,0.00019166,2]
[370609772,1752073840625,-110.4396522,0.00019166,2]
[370609774,1752073840636,-189.5603478,0.00019166,2]
[370609776,1752073840645,-290.37756348,0.00019166,2]
[370609778,1752073840656,-9.62243652,0.00019166,2]
[370609780,1752073840666,-500.0,0.00019166,2]
[370609782,1752073840675,-300.0,0.00019166,2]
[370609784,1752073840685,-500.0,0.00019166,2]
[370609786,1752073840694,-142.66974686,0.00019166,2]
[370610062,1752073843094,-157.33025314,0.00019166,2]
[370610064,1752073843104,-300.0,0.00019166,2]
[370610066,1752073843113,-500.0,0.00019166,2]
[370610068,1752073843122,-300.0,0.00019166,2]
[370610070,1752073843131,-300.0,0.00019166,2]
[370610072,1752073843140,-467.50648864,0.00019166,2]
[370610074,1752073843151,-32.49351136,0.00019166,2]
[370610075,1752073843160,-300.0,0.00019166,2]
[370610076,1752073843169,-500.0,0.00019166,2]
[370610077,1752073843179,-300.0,0.00019166,2]
[370610078,1752073843188,-500.0,0.00019166,2]
[370610079,1752073843197,-300.0,0.00019166,2]
[370610080,1752073843206,-3000.0,0.00019166,2]
[370610081,1752073843215,-500.0,0.00019166,2]
[370610082,1752073843224,-3000.0,0.00019166,2]
[370610083,1752073843233,-346.64489862,0.00019166,2]
[370610084,1752073843242,-300.0,0.00019166,2]
[370610085,1752073843251,-3000.0,0.00019166,2]
[370610087,1752073843260,-3000.0,0.00019166,2]
[370610088,1752073843269,-167.0,0.00019166,2]
[370610090,1752073843279,-3067.06244273,0.00019166,2]
[370610092,1752073843289,-276.64,0.00019168,3]
[370610095,1752073843298,-829.94,0.00019168,3]
[370610098,1752073843307,-159.95142454,0.00019169,2]
[370610101,1752073843317,-500.0,0.00019173,2]
[370610103,1752073843326,-500.70507689,0.00019173,2]
[370610105,1752073843335,-500.0,0.00019173,2]
[370610107,1752073843344,-500.0,0.00019173,2]
[370610110,1752073843353,-501.16070822,0.00019173,2]
[370610112,1752073843362,-501.71328226,0.00019173,2]
[370610114,1752073843371,-503.43673046,0.00019173,2]
[370610116,1752073843382,-500.0,0.00019173,2]
[370610118,1752073843391,-500.0,0.00019173,2]
[370610120,1752073843400,-500.0,0.00019173,2]
[370610122,1752073843409,-503.58664453,0.00019173,2]
[370610124,1752073843418,-211.61954839,0.00019173,2]
[370610126,1752073843428,-500.0,0.00019173,2]
[370610129,1752073843438,-500.0,0.00019173,2]
[370610130,1752073843447,-618.91007682,0.00019173,2]
[370610133,1752073843456,-502.40999338,0.00019173,2]
[370610134,1752073843467,-500.0,0.00019173,2]
[370610136,1752073843477,-500.81818195,0.00019173,2]
[370610139,1752073843486,-500.0,0.00019173,2]
[370610140,1752073843496,-500.0,0.00019173,2]
[370610143,1752073843505,-500.91344477,0.00019173,2]
[370610158,1752073843637,-500.0,0.00019173,2]
[370610160,1752073843651,-500.0,0.00019173,2]
[370610162,1752073843661,-500.0,0.00019173,2]
[370610164,1752073843670,-500.0,0.00019173,2]
[370610166,1752073843679,-500.0,0.00019173,2]
[370610168,1752073843688,-500.71987847,0.00019173,2]
[370610170,1752073843697,-500.0,0.00019173,2]
[370610172,1752073843706,-452.66420025,0.00019173,2]
[370610174,1752073843715,-347.54270452,0.00019173,2]
[370610176,1752073843724,-500.0,0.00019173,2]
[370610178,1752073843734,-441.55023707,0.00019173,2]
[370610180,1752073843743,-500.0,0.00019173,2]
[370610182,1752073843752,-500.0,0.00019173,2]
[370610184,1752073843762,-500.0,0.00019173,2]
[370610186,1752073843770,-500.0,0.00019173,2]
[370610188,1752073843779,-500.0,0.00019173,2]
[370610189,1752073843788,-500.0,0.00019173,2]
[370610191,1752073843797,-500.0,0.00019173,2]
[370610193,1752073843807,-159.272698,0.00019173,2]
[370610195,1752073843817,-500.0,0.00019173,2]
[370610197,1752073843826,-500.0,0.00019173,2]
[370610199,1752073843835,-500.0,0.00019173,2]
[370610201,1752073843844,-500.0,0.00019173,2]
[370610204,1752073843854,-502.02912215,0.00019173,2]
[370610205,1752073843863,-500.0,0.00019173,2]
[370610208,1752073843872,-500.0,0.00019173,2]
[370610209,1752073843883,-500.0,0.00019173,2]
[370610211,1752073843894,-477.86250968,0.00019173,2]
[370610213,1752073843903,-500.0,0.00019173,2]
[370610215,1752073843912,-500.0,0.00019173,2]
[370610217,1752073843921,-500.0,0.00019173,2]
[370610219,1752073843931,-500.0,0.00019173,2]
[370610222,1752073843940,-500.0,0.00019173,2]
[370610224,1752073843950,-500.0,0.00019174,2]
[370610226,1752073843959,-215.02225243,0.00019174,2]
[370610228,1752073843968,-370.61411133,0.00019174,2]
[370610230,1752073843977,-500.0,0.00019174,2]
[370610232,1752073843986,-500.0,0.00019174,2]
[370610234,1752073843996,-519.997,0.00019174,2]
[370610235,1752073844007,-1090.95098186,0.00019174,2]
[370610237,1752073844018,-500.0,0.00019174,2]
[370610239,1752073844027,-224.34553056,0.00019174,2]
[370610241,1752073844036,-500.0,0.00019174,2]
[370610243,1752073844045,-1090.95098186,0.00019174,2]
[370610245,1752073844054,-543.49634507,0.00019174,2]
[370610247,1752073844063,-1090.95098186,0.00019174,2]
[370610249,1752073844072,-1090.95098186,0.00019174,2]
[370610251,1752073844082,-1090.95098186,0.00019174,2]
[370610253,1752073844093,-1090.95098186,0.00019174,2]
[370610255,1752073844102,-1090.95098186,0.00019174,2]
[370610257,1752073844111,-1090.95098186,0.00019174,2]
[370610259,1752073844120,-1090.95098186,0.00019174,2]
[370610261,1752073844129,-1090.95098186,0.00019174,2]
[370610263,1752073844138,-1090.95098186,0.00019174,2]
[370610265,1752073844147,-1090.95098186,0.00019174,2]
[370610267,1752073844157,-1090.95098186,0.00019174,2]
[370610268,1752073844166,-1090.95098186,0.00019174,2]
[370610270,1752073844175,-1090.95098186,0.00019174,2]
[370610272,1752073844185,-1090.95098186,0.00019174,2]
[370610274,1752073844194,-1090.95098186,0.00019174,2]
[370610277,1752073844204,-1090.95098186,0.00019174,2]
[370610279,1752073844214,-1090.95098186,0.00019174,2]
[370610280,1752073844223,-1090.95098186,0.00019174,2]
[370610282,1752073844232,-1090.95098186,0.00019174,2]
[370610284,1752073844243,-1090.95098186,0.00019174,2]
[370610286,1752073844253,-1090.95098186,0.00019174,2]
[370610288,1752073844262,-1090.95098186,0.00019174,2]
[370610291,1752073844272,-1090.95098186,0.00019174,2]
[370610292,1752073844281,-1090.95098186,0.00019174,2]
[370610294,1752073844290,-1090.95098186,0.00019174,2]
[370610297,1752073844299,-1090.95098186,0.00019174,2]
[370610299,1752073844310,-103.16580517,0.00019174,2]
[370610485,1752073846130,-987.78517669,0.00019174,2]
[370610488,1752073846149,-1090.95098186,0.00019174,2]
[370610490,1752073846163,-1090.95098186,0.00019174,2]
[370610493,1752073846173,-1090.95098186,0.00019174,2]
[370610495,1752073846184,-324.56187773,0.00019174,2]
[370610497,1752073846197,-766.38910413,0.00019174,2]
[370610499,1752073846207,-1090.95098186,0.00019174,2]
[370610501,1752073846217,-1090.95098186,0.00019174,2]
[370610503,1752073846227,-1090.95098186,0.00019174,2]
[370610505,1752073846237,-160.0,0.00019174,2]
[370610507,1752073846247,-5390.61902955,0.00019175,2]
[370610509,1752073846256,-16353.49531119,0.00019175,2]
[370610511,1752073846266,-1000.0,0.00019177,2]
[370610513,1752073846276,-1000.0,0.00019177,2]
[370610515,1752073846285,-1000.0,0.00019177,2]
[370610517,1752073846295,-1000.0,0.00019177,2]
[370610519,1752073846306,-1000.0,0.00019177,2]
[370610521,1752073846316,-1000.0,0.00019177,2]
[370610523,1752073846325,-1000.0,0.00019177,2]
[370610525,1752073846335,-1000.0,0.00019177,2]
[370610527,1752073846344,-159.6042176,0.00019177,2]
[370610529,1752073846354,-500.0,0.00019177,2]
[370610531,1752073846364,-460.0,0.00019178,2]
[370610533,1752073846374,-460.0,0.00019178,2]
[370610535,1752073846384,-460.0,0.00019178,2]
[370610537,1752073846394,-151.0,0.00019178,2]
[370610539,1752073846404,-151.0,0.00019178,2]
[370610542,1752073846414,-460.0,0.00019178,2]
[370610544,1752073846425,-151.0,0.00019178,2]
[370610546,1752073846435,-151.400079,0.00019178,2]
[370610548,1752073846445,-460.0,0.00019178,2]
[370610550,1752073846454,-151.0,0.00019178,2]
[370610552,1752073846464,-151.0,0.00019178,2]
[370610554,1752073846475,-1000.0,0.00019178,2]
[370610556,1752073846484,-151.0,0.00019178,2]
[370610558,1752073846494,-578.16015328,0.00019178,2]
[370610560,1752073846504,-460.0,0.00019178,2]
[370610562,1752073846515,-460.0,0.00019178,2]
[370610564,1752073846526,-460.0,0.00019178,2]
[370610566,1752073846536,-460.0,0.00019178,2]
[370610568,1752073846549,-460.0,0.00019178,2]
[370610570,1752073846563,-460.0,0.00019178,2]
[370610572,1752073846572,-151.0,0.00019178,2]
[370610574,1752073846582,-151.0,0.00019178,2]
[370610576,1752073846592,-461.49756378,0.00019178,2]
[370610578,1752073846606,-460.0,0.00019178,2]
[370610580,1752073846616,-460.0,0.00019178,2]
[370610582,1752073846626,-151.0,0.00019178,2]
[370610584,1752073846636,-151.0,0.00019178,2]
[370610586,1752073846645,-460.0,0.00019178,2]
[370610588,1752073846655,-151.0,0.00019178,2]
[370610590,1752073846664,-460.99452902,0.00019178,2]
[370610592,1752073846674,-460.0,0.00019178,2]
[370610594,1752073846683,-460.0,0.00019178,2]
[370610596,1752073846694,-206.27579837,0.00019178,2]
[370610599,1752073846710,-253.72420163,0.00019178,2]
[370610601,1752073846719,-460.0,0.00019178,2]
[370610603,1752073846729,-152.854533,0.00019178,2]
[370610605,1752073846738,-460.60416027,0.00019178,2]
[370610607,1752073846747,-460.0,0.00019178,2]
[370610609,1752073846757,-201.01722405,0.00019178,2]
[370612741,1752073906841,215.75494997,0.000189,2]
[370612745,1752074101998,155.386369,0.00018816,7]
[370612746,1752074105599,824.46369487,0.00019,2]
[370612748,1752074194769,6030.0,0.00018301,2]
[370612750,1752074567300,500.0,0.000183,2]
[370612875,1752074735097,-155.38637,0.00018816,7]
[370612876,1752074735119,-150.0,0.000189,2]
[370612877,1752074735141,-269.85533617,0.00018968,2]
[370612878,1752074735163,-207.4,0.00018989,2]
[370612879,1752074735185,-952.0,0.00018999,2]
[370612880,1752074735208,-300.0,0.00018999,2]
[370612881,1752074735237,-2202.98373618,0.00019,2]
[370612935,1752074884569,203352.74076469,0.00025579,60]
[370612945,1752074919632,2422.5,0.00018,2]
[370612986,1752074970158,-150.0,0.000189,2]
[370612987,1752074970184,-300.0,0.00018999,2]
[370612988,1752074970208,-52271.64178269,0.00019,2]
[370612998,1752075005074,1047.5,0.00017463,2]
[370612999,1752075005107,4438.42721964,0.00017463,2]
[370613000,1752075005376,5000.0,0.00017463,2]
[370613001,1752075005832,561.57278036,0.00017463,2]
[370613002,1752075005866,4438.42721964,0.00017463,2]
[370613003,1752075006152,5000.0,0.00017463,2]
[370613004,1752075006474,183.85160119,0.00017463,2]
[370613005,1752075006506,561.57278036,0.00017463,2]
[370613006,1752075006538,4254.57561845,0.00017463,2]
[370613033,1752075032521,-236.12341914,0.000189,2]
[370613034,1752075032531,-207.4,0.00018989,2]
[370613035,1752075032542,-443.18873099,0.00018999,2]
[370613036,1752075032554,-2219.3465952,0.00018999,2]
[370613037,1752075032567,-4397.796,0.00018999,2]
[370613038,1752075032613,-51025.25194332,0.00018999,2]
[370613089,1752075038362,-263.39155267,0.00018998,2]
[370613091,1752075038372,-479.33864884,0.00018998,2]
[370613093,1752075038381,-698.20862839,0.00018998,2]
[370613095,1752075038391,-698.20862839,0.00018998,2]
[370613097,1752075038401,-698.20862839,0.00018998,2]
[370613099,1752075038411,-698.20862839,0.00018998,2]
[370613101,1752075038420,-132.51246783,0.00018998,2]
[370613104,1752075038434,-565.69616056,0.00018998,2]
[370613106,1752075038443,-210.14436307,0.00018998,2]
[370613139,1752075038757,-488.06426532,0.00018998,2]
[370613141,1752075038767,-698.20862839,0.00018998,2]
[370613142,1752075038777,-698.20862839,0.00018998,2]
[370613144,1752075038787,-698.20862839,0.00018998,2]
[370613146,1752075038796,-698.20862839,0.00018998,2]
[370613148,1752075038806,-698.20862839,0.00018998,2]
[370613150,1752075038815,-698.20862839,0.00018998,2]
[370613152,1752075038825,-698.20862839,0.00018998,2]
[370613154,1752075038834,-698.20862839,0.00018998,2]
[370613156,1752075038843,-698.20862839,0.00018998,2]
[370613158,1752075038853,-698.20862839,0.00018998,2]
[370613159,1752075038862,-698.20862839,0.00018998,2]
[370613160,1752075038872,-698.20862839,0.00018998,2]
[370613161,1752075038882,-698.20862839,0.00018998,2]
[370613163,1752075038892,-698.20862839,0.00018998,2]
[370613164,1752075038901,-698.20862839,0.00018998,2]
[370613167,1752075038911,-698.20862839,0.00018998,2]
[370613169,1752075038920,-698.20862839,0.00018998,2]
[370613170,1752075038929,-698.20862839,0.00018998,2]
[370613173,1752075038939,-698.20862839,0.00018998,2]
[370613175,1752075038949,-698.20862839,0.00018998,2]
[370613177,1752075038958,-698.20862839,0.00018998,2]
[370613179,1752075038967,-698.20862839,0.00018998,2]
[370613181,1752075038976,-698.20862839,0.00018998,2]
[370613183,1752075038987,-698.20862839,0.00018998,2]
[370613184,1752075038997,-7252.13324896,0.00018999,2]
[370613187,1752075039009,-288.12,0.00018999,2]
[370613306,1752075043284,-48568.91054131,0.00018999,2]
[370613307,1752075043328,-585.13435132,0.00018999,2]
[370613310,1752075043573,-12994.17072934,0.00018999,2]
[370613311,1752075043584,-432.73892352,0.00018999,2]
[370613404,1752075046365,-324.77797581,0.00018999,2]
[370613409,1752075196423,2400.0,0.00017876,2]
[370613414,1752075210200,85054.21740442,0.00027397,120]
[370613418,1752075256764,179.618871,0.00013699,2]
[370613450,1752075547045,240.49438796,0.00018228,2]
[370613451,1752075592583,2700.0,0.00017876,2]
[370613457,1752075652650,225.31112259,0.000183,3]
[370613458,1752075652807,240.19383027,0.000183,3]
[370613460,1752075829818,1589.29930151,0.00017876,2]
[370613461,1752075829843,1310.70069849,0.00017876,2]
[370613462,1752075850452,157.97725699,0.00018228,2]
[370613463,1752075991091,159.98568789,0.000183,2]
[370613480,1752076154216,-151.0,0.000184,2]
[370613481,1752076154237,-411.52762241,0.000184,2]
[370613482,1752076154258,-154.0,0.000184,2]
[370613483,1752076154281,-1200.0,0.00018698,2]
[370613484,1752076154301,-1200.0,0.00018698,2]
[370613485,1752076154324,-300.0,0.00018698,2]
[370613486,1752076154345,-760.0728999,0.0001874,2]